{"text_format":"1","workbook":"xlsx","n_sheets":3,"sheets":["Vaktliste ","Tidstabell","Module3"],"not_rendered":{"charts":0,"images":1,"macros":1,"external_links":0,"defined_names":24,"comments":0,"pivot_tables":0},"unopened":[{"sheet":"Module3","index":2,"reason":"part_missing"}],"bounds":{"document_bytes":16777216,"sheet_cells":100000,"rows_first":2000,"rows_last":500,"rows_between":2000,"halvings":0,"cell_chars":16384,"cell_head_chars":4096},"cells_cut":0,"cells_raw":0,"read":"whole","date_system":"1900"}

{"sheet":"Vaktliste ","index":0,"n_rows":114,"n_cols":33,"rows_kept":114,"cut":false,"hidden":false,"merged":[[2,2,2,6]]}
[null,null,{"$f":"SUBTOTAL(3,C$6:C$200)","v":108}]
[]
[null,null,"Vaktliste 1. halvår 2020 - Arendal Swingklubb",null,null,null,null,null,null,"Annie","Dagfinn","Tom","Kyonghwa","Alfhild","Irene","Knut","Turid","Øystein","Bjørn Ivar","Elisabeth","Maria","Johannes",null,null,null,null,null,null,null,null,null,"Siste Kursdag: ",{"$f":"Siste_Kursdag","v":"2020-04-02"}]
[]
[null,"+'","Uke","Dato","Dag","Jobbgjeng på vakt","Merknader  ","Forkortelser",null,null,null,null,null,null,null,null,null,null,null,null,null,null,null,null,"Fra","V2 Fra","Til","Sum",0,"Nøkk.vakt",0,"Spillere               "]
[null,null,2,"2020-01-06",{"$f":"INDEX(DayNames,WEEKDAY(D6))","v":"Man"},{"$f":"PickSelected(I6:X6,JobbgjengNavn)","v":"Annie, Tom"},"Medlemsmøte/Bursdag 30 år",{"$f":"PickSelected(I6:X6,JobbgjengFork)","v":""},null,1,null,1,null,null,null,null,null,null,null,null,null,null,null,null,"17:30:00",{"$f":"IF($F6=\"\",\"\",IF(AND($D6>=Første_Kursdag,$D6<=Siste_Kursdag),VLOOKUP($E6,Tidtabell,4,FALSE),\"\"))","v":""},"22:00:00",{"$f":"IF(AA6<>\"\",AA6-Y6,0)","v":"04:30:00"},{"$f":"AC$5+1","v":1},"Ivar",null,"Jonne"]
[null,3,2,{"$f":"D6+B7","v":"2020-01-09"},{"$f":"INDEX(DayNames,WEEKDAY(D7))","v":"Tor"},{"$f":"PickSelected(I7:X7,JobbgjengNavn)","v":""},null,"",null,null,null,null,null,null,null,null,null,null,null,null,null,null,null,null,{"$f":"IF($F7=\"\",\"\",IF(AND($D7>=Første_Kursdag,$D7<=Siste_Kursdag),VLOOKUP($E7,Tidtabell,2,FALSE),VLOOKUP($E7,Tidtabell,3,FALSE)))","v":""},"",{"$f":"IF(F7<>\"\",VLOOKUP($E7,Tidtabell,6,FALSE),\"\")","v":""},{"$f":"IF(AA7<>\"\",AA7-Y7,0)","v":"00:00:00"},{"$f":"AC6+1","v":2},"Christiene"]
[null,4,{"$f":"IF(C7=C6,C7+1,C7)","v":3},{"$f":"D7+B8","v":"2020-01-13"},{"$f":"INDEX(DayNames,WEEKDAY(D8))","v":"Man"},"Dagfinn, Irene, Knut","Grunnkurs 1. kurskveld","",null,null,1,null,null,null,1,1,null,null,null,null,null,null,null,null,"17:15:00","19:30:00","22:00:00","04:45:00",{"$f":"AC7+1","v":3},"Christine",null,"Line/Aage"]
[null,{"$f":"IF(B8<B7,B8+1,B8-1)","v":3},{"$f":"IF(C8=C7,C8+1,C8)","v":3},{"$f":"D8+B9","v":"2020-01-16"},{"$f":"INDEX(DayNames,WEEKDAY(D9))","v":"Tor"},"Kyonghwa, Alfhild","VG Første kurskveld","",null,null,null,null,1,1,null,null,null,null,null,null,null,null,null,null,"17:15:00","19:30:00","21:00:00","03:45:00",4,"Inger"]
[null,{"$f":"IF(B9<B8,B9+1,B9-1)","v":4},{"$f":"IF(C9=C8,C9+1,C9)","v":4},{"$f":"D9+B10","v":"2020-01-20"},{"$f":"INDEX(DayNames,WEEKDAY(D10))","v":"Man"},"Turid, Øystein",null,"",null,null,null,null,null,null,null,null,1,1,null,null,null,null,null,null,"17:30:00","19:30:00",22,21.270833333333332,5,"Tove",null,"Tron/Per Arild"]
[null,{"$f":"IF(B10<B9,B10+1,B10-1)","v":3},{"$f":"IF(C10=C9,C10+1,C10)","v":4},{"$f":"D10+B11","v":"2020-01-23"},{"$f":"INDEX(DayNames,WEEKDAY(D11))","v":"Tor"},"Bjørn Ivar",null,"",null,null,null,null,null,null,null,null,null,null,1,null,null,null,null,null,"17:30:00","19:30:00","22:00:00","04:30:00",6,"Lisbeth"]
[null,{"$f":"IF(B11<B10,B11+1,B11-1)","v":4},{"$f":"IF(C11=C10,C11+1,C11)","v":5},{"$f":"D11+B12","v":"2020-01-27"},"Man","Elisabeth, Johannes",null,"",null,null,null,null,null,null,null,null,null,null,null,1,null,1,null,null,"17:30:00","19:30:00","22:00:00","04:30:00",7,"Olav",null,"Hanne/Jonne"]
[null,3,{"$f":"IF(C12=C11,C12+1,C12)","v":5},"2020-01-30","Tor","Maria",null,"",null,null,null,null,null,null,null,null,null,null,null,null,1,null,null,null,"17:30:00","19:30:00","21:00:00","03:30:00",8,"Line"]
[null,4,6,"2020-02-03","Man","Annie, Kyonghwa","Grunnkurs siste kurskveld","",null,1,null,null,1,null,null,null,null,null,null,null,null,null,null,null,"17:30:00","19:30:00","22:00:00","04:30:00",9,"Ivar",null,"Aage/Tron"]
[null,3,6,"2020-02-06","Tor","Tom","Vg siste kurskveld","",null,null,null,1,null,null,null,null,null,null,null,null,null,null,null,null,"17:30:00","19:30:00","21:00:00","03:30:00",10,"Arne Gunnar"]
[null,4,7,"2020-02-10","Man","Dagfinn, Alfhild, Irene","Grunnkurs 1. kurskveld","",null,null,1,null,null,1,1,null,null,null,null,null,null,null,null,null,"17:15:00","19:30:00","22:00:00","04:45:00",11,"Inger",null,"Per Arild/Line"]
[null,3,7,"2020-02-13","Tor","Knut, Turid","VG Første kurskveld","",null,null,null,null,null,null,null,1,1,null,null,null,null,null,null,null,"17:15:00","19:30:00","21:00:00","03:45:00",12,"Solveig"]
[null,4,8,"2020-02-17","Man","Øystein, Bjørn Ivar",null,"",null,null,null,null,null,null,null,null,null,1,1,null,null,null,null,null,"17:30:00","19:30:00","22:00:00","04:30:00",13,"Lisbeth",null,"Jonne/Hanne"]
[null,3,8,"2020-02-20","Tor","Elisabeth",null,"",null,null,null,null,null,null,null,null,null,null,null,1,null,null,null,null,"17:30:00","19:30:00","21:00:00","03:30:00",14,"Line"]
[null,4,9,"2020-02-24","Man","Maria, Johannes",null,"",null,null,null,null,null,null,null,null,null,null,null,null,1,1,null,null,"17:30:00","19:30:00","22:00:00","04:30:00",15,"Olav",null,"Line/Aage"]
[null,3,9,"2020-02-27","Tor",null,null,"",null,null,1,null,null,null,null,null,null,null,null,null,null,null,null,null,"","","","00:00:00",16]
[null,4,10,"2020-03-02","Man","Annie, Tom","Grunnkurs siste kurskveld","",null,1,null,1,null,null,null,null,null,null,null,null,null,null,null,null,"17:30:00","19:30:00","22:00:00","04:30:00",17,"Arne Gunnar",null,"Tron/Per Arild"]
[null,3,10,"2020-03-05","Tor","Øystein","Vg siste kurskveld","",null,null,null,null,null,null,null,null,null,1,null,null,null,null,null,null,"17:30:00","19:30:00","21:00:00","03:30:00",18,"Inger"]
[null,4,11,"2020-03-09","Man","Bjørn Ivar, Elisabeth, Maria","Grunnkurs 1. kurskveld","",null,null,null,null,null,null,null,null,null,null,1,1,1,null,null,null,"17:15:00","19:30:00","22:00:00","04:45:00",19,"Solveig",null,"Hanne/Line"]
[null,3,11,"2020-03-12","Tor","Kyonghwa, Johannes","VG Første kurskveld","",null,null,null,null,1,null,null,null,null,null,null,null,null,1,null,null,"17:15:00","19:30:00","21:00:00","03:45:00",20,"Lisbeth"]
[null,4,12,"2020-03-16","Man","Dagfinn, Irene",null,"",null,null,1,null,null,null,1,null,null,null,null,null,null,null,null,null,"17:30:00","19:30:00","22:00:00","04:30:00",21,"Knut",null,"Aage/Jonne"]
[null,3,12,"2020-03-19","Tor","Alfhild",null,"",null,null,null,null,null,1,null,null,null,null,null,null,null,null,null,null,"17:30:00","19:30:00","21:00:00","03:30:00",22,"Line"]
[null,4,13,"2020-03-23","Man","Knut, Turid",null,"",null,null,null,null,null,null,null,1,1,null,null,null,null,null,null,null,"17:30:00","19:30:00","22:00:00","04:30:00",23,"Ivar",null,"Per Arild/Tron"]
[null,3,13,"2020-03-26","Tor","Bjørn Ivar",null,"",null,null,null,null,null,null,null,null,null,null,1,null,null,null,null,null,"17:30:00","19:30:00","21:00:00","03:30:00",24,"Arne Gunnar"]
[null,4,14,"2020-03-30","Man","Øystein, Elisabeth","Grunnkurs siste kurskveld","",null,null,null,null,null,null,null,null,null,1,null,1,null,null,null,null,"17:30:00","19:30:00","22:00:00","04:30:00",25,"Inger",null,"Jonne/Aage"]
[null,3,14,"2020-04-02","Tor","Annie","Vg Siste kurskveld","",null,1,null,null,null,null,null,null,null,null,null,null,null,null,null,null,"17:30:00","19:30:00","21:00:00","03:30:00",26,"Solveig"]
[null,4,15,"2020-04-06","Man","Dagfinn, Irene",null,"",null,null,1,null,null,null,1,null,null,null,null,null,null,null,null,null,{"$f":"IF($F32=\"\",\"\",IF(AND($D32>=Første_Kursdag,$D32<=Siste_Kursdag),VLOOKUP($E32,Tidtabell,2,FALSE),VLOOKUP($E32,Tidtabell,3,FALSE)))","v":"19:00:00"},"","22:00:00","03:00:00",27,"Lisbeth",null,"Line/Per Arild"]
[null,3,15,"2020-04-09","Tor","",null,"",null,null,null,null,null,null,null,null,null,null,null,null,null,null,null,null,"","","","00:00:00",28,"Olav"]
[null,{"$f":"IF(B33<B32,B33+1,B33-1)","v":4},{"$f":"IF(C33=C32,C33+1,C33)","v":16},{"$f":"D33+B34","v":"2020-04-13"},"Man","Tom, Kyonghwa","2. påskedag",null,null,null,null,1,1,null,null,null,null,null,null,null,null,null,null,null,"19:00:00","","22:00:00","03:00:00",{"$f":"AC33+1","v":29},"Line",null,"Tron/Jonne"]
[null,{"$f":"IF(B34<B33,B34+1,B34-1)","v":3},{"$f":"IF(C34=C33,C34+1,C34)","v":16},"2020-04-16","Tor","",null,null,null,null,null,null,null,null,null,null,null,null,null,null,null,null,null,null,"","","","00:00:00",30,"Line"]
[null,{"$f":"IF(B35<B34,B35+1,B35-1)","v":4},{"$f":"IF(C35=C34,C35+1,C35)","v":17},{"$f":"D35+B36","v":"2020-04-20"},"Man","Alfhild, Elisabeth","Enkeltstående kurs",null,null,null,null,null,null,1,null,null,null,null,null,1,null,null,null,null,"17:30:00","","22:00:00","04:30:00",31,"Knut",null,"Hanne/Line"]
[null,{"$f":"IF(B36<B35,B36+1,B36-1)","v":3},{"$f":"IF(C36=C35,C36+1,C36)","v":17},"2020-04-23","Tor","",null,null,null,null,null,null,null,null,null,null,null,null,null,null,null,null,null,null,"","","","00:00:00",32]
[null,4,18,"2020-04-27","Man","Knut, Turid","Enkeltstående kurs",null,null,null,null,null,null,null,null,1,1,null,null,null,null,null,null,null,"17:30:00","","22:00:00","04:30:00",33,"Ivar",null,"Aage/Tron"]
[null,3,18,"2020-04-30","Tor","",null,null,null,null,null,null,null,null,null,null,null,null,null,null,null,null,null,null,"","","","00:00:00",34,"Christine"]
[null,4,19,"2020-05-04","Man","Øystein, Maria","Enkeltstående kurs",null,null,null,null,null,null,null,null,null,null,1,null,null,1,null,null,null,"17:30:00","","22:00:00","04:30:00",35,"Arne Gunnar",null,"Per Arild/Hanne"]
[null,3,19,"2020-05-07","Tor","",null,null,null,null,null,null,null,null,null,null,null,null,null,null,null,null,null,null,"","","","00:00:00",36,"Inger"]
[null,4,20,"2020-05-11","Man","Annie, Tom",null,null,null,1,null,1,null,null,null,null,null,null,null,null,null,null,null,null,"19:00:00","","22:00:00","03:00:00",37,"Solveig",null,"Jonne/Aage"]
[null,3,20,"2020-05-14","Tor","",null,null,null,null,null,null,null,null,null,null,null,null,null,null,null,null,null,null,"","","","00:00:00",38,"Lisbeth"]
[null,4,21,"2020-05-18","Man","Elisabeth, Johannes",null,null,null,null,null,null,null,null,null,null,null,null,null,1,null,1,null,null,"19:00:00","","22:00:00","03:00:00",39,"Lisbeth",null,"Line/Hanne"]
[null,3,21,"2020-05-21","Tor","",null,null,null,null,null,null,null,null,null,null,null,null,null,null,null,null,null,null,"","","","00:00:00",40,"Olav"]
[null,4,22,"2020-05-25","Man","Kyonghwa, Bjørn Ivar",null,null,null,null,null,null,1,null,null,null,null,null,1,null,null,null,null,null,"19:00:00","","22:00:00","03:00:00",41,"Knut",null,"Tron/Jonne"]
[null,{"$f":"IF(B46<B45,B46+1,B46-1)","v":3},{"$f":"IF(C46=C45,C46+1,C46)","v":22},{"$f":"D46+B47","v":"2020-05-28"},"Tor","",null,null,null,null,null,null,null,null,null,null,null,null,null,null,null,null,null,null,"","","","00:00:00",42,"Line"]
[null,4,23,"2020-06-01","Man","Dagfinn, Irene",null,null,null,null,1,null,null,null,1,null,null,null,null,null,null,null,null,null,"19:00:00","","22:00:00","03:00:00",43,"Line",null,"Hanne/Per Arild"]
[null,3,23,"2020-06-04","Tor","",null,null,null,null,null,null,null,null,null,null,null,null,null,null,null,null,null,null,"","","","00:00:00",44,"Anne Bjørg"]
[null,4,24,"2020-06-08","Man","Alfhild, Knut",null,null,null,null,null,null,null,1,null,1,null,null,null,null,null,null,null,null,"19:00:00","","22:00:00","03:00:00",45,"Ivar",null,"Aage/Tron"]
[null,3,24,"2020-06-11","Tor","",null,null,null,null,null,null,null,null,null,null,null,null,null,null,null,null,null,null,"","","","00:00:00",46]
[null,4,25,"2020-06-15","Man","Turid, Maria",null,null,null,null,null,null,null,null,null,null,1,null,null,null,1,null,null,null,"19:00:00","","22:00:00","03:00:00",47,"Arne Gunnar",null,"Per Arild/Hanne"]
[null,3,25,"2020-06-18","Tor","",null,null,null,null,null,null,null,null,null,null,null,null,null,null,null,null,null,null,"","","","00:00:00",48,"Line"]
[null,4,26,{"$f":"D53+B54","v":"2020-06-22"},"Man","Annie, Tom",null,null,null,1,null,1,null,null,null,null,null,null,null,null,null,null,null,null,"19:00:00","","22:00:00","03:00:00",49,"Inger",null,"Line/Jonne"]
[null,3,26,"2020-06-25","Tor","",null,"",null,null,null,null,null,null,null,null,null,null,null,null,null,null,null,null,"","","","00:00:00",50]
[null,4,27,"2020-06-29","Man","Kyonghwa, Øystein",null,"",null,null,null,null,1,null,null,null,null,1,null,null,null,null,null,null,"19:00:00","","22:00:00","03:00:00",51,"Solveig",null,"Tron/Aage"]
[null,3,27,"2020-07-02","Tor","",null,"",null,null,null,null,null,null,null,null,null,null,null,null,null,null,null,null,"","","","00:00:00",52]
[null,4,28,"2020-07-06","Man","Bjørn Ivar, Elisabeth",null,"",null,null,null,null,null,null,null,null,null,null,1,1,null,null,null,null,"19:00:00","","22:00:00","03:00:00",53,"Lisbeth",null,"Hanne/Jonne"]
[null,3,28,"2020-07-09","Tor","",null,"",null,null,null,null,null,null,null,null,null,null,null,null,null,null,null,null,"","","","00:00:00",54]
[null,4,29,"2020-07-13","Man","Dagfinn, Irene",null,"",null,null,1,null,null,null,1,null,null,null,null,null,null,null,null,null,"19:00:00","","22:00:00","03:00:00",55,"Knut",null,"Aage/Line"]
[null,3,29,"2020-07-16","Tor","",null,"",null,null,null,null,null,null,null,null,null,null,null,null,null,null,null,null,"","","","00:00:00",56]
[null,4,30,"2020-07-20","Man","Alfhild, Knut",null,"",null,null,null,null,null,1,null,1,null,null,null,null,null,null,null,null,"19:00:00","","22:00:00","03:00:00",57,"Line",null,"Per Arild/Tron"]
[null,3,30,"2020-07-23","Tor","",null,"",null,null,null,null,null,null,null,null,null,null,null,null,null,null,null,null,"","","","00:00:00",58]
[null,4,31,"2020-07-27","Man","Turid, Johannes",null,"",null,null,null,null,null,null,null,null,1,null,null,null,null,1,null,null,"19:00:00","","22:00:00","03:00:00",59,"Ivar",null,"Jonne/Aage"]
[null,3,31,"2020-07-30","Tor","",null,"",null,null,null,null,null,null,null,null,null,null,null,null,null,null,null,null,"","","","00:00:00",60]
[null,4,32,"2020-08-03","Man","Tom, Maria",null,"",null,null,null,1,null,null,null,null,null,null,null,null,1,null,null,null,"19:00:00","","22:00:00","03:00:00",61,"Arne Gunnar",null,"Tron/Line "]
[null,3,32,"2020-08-06","Tor","",null,"",null,null,null,null,null,null,null,null,null,null,null,null,null,null,null,null,"","","","00:00:00",62]
[null,4,33,"2020-08-10","Man","Annie, Kyonghwa",null,"",null,1,null,null,1,null,null,null,null,null,null,null,null,null,null,null,"19:00:00","","22:00:00","03:00:00",63,"Inger",null,"Hanne/Per Arild"]
[null,3,33,"2020-08-13","Tor","",null,"",null,null,null,null,null,null,null,null,null,null,null,null,null,null,null,null,"","","","00:00:00",64]
[null,4,34,"2020-08-17","Man","Alfhild, Bjørn Ivar",null,{"$f":"PickSelected(I70:X70,JobbgjengFork)","v":""},null,null,null,null,null,1,null,null,null,null,1,null,null,null,null,null,{"$f":"IF($F70=\"\",\"\",IF(AND($D70>=Første_Kursdag,$D70<=Siste_Kursdag),VLOOKUP($E70,Tidtabell,2,FALSE),VLOOKUP($E70,Tidtabell,3,FALSE)))","v":"19:00:00"},{"$f":"IF($F70=\"\",\"\",IF(AND($D70>=Første_Kursdag,$D70<=Siste_Kursdag),VLOOKUP($E70,Tidtabell,4,FALSE),\"\"))","v":""},{"$f":"IF(F70<>\"\",VLOOKUP($E70,Tidtabell,6,FALSE),\"\")","v":"22:00:00"},"03:00:00",65,"Solveig",null,"Aage/Tron"]
[null,3,34,"2020-08-20","Tor",{"$f":"PickSelected(I71:X71,JobbgjengNavn)","v":""},null,"",null,null,null,null,null,null,null,null,null,null,null,null,null,null,null,null,"","","",{"$f":"IF(AA71<>\"\",AA71-Y71,0)","v":"00:00:00"},{"$f":"AC70+1","v":66}]
[null,4,35,"2020-08-24","Man","Irene, Johannes",null,"",null,null,null,null,null,null,1,null,null,null,null,null,null,1,null,null,"19:00:00","","22:00:00","03:00:00",67,"Lisbeth",null,"Per Arild/Line"]
[null,3,35,"2020-08-27","Tor","",null,"",null,null,null,null,null,null,null,null,null,null,null,null,null,null,null,null,"","","","00:00:00",68]
[null,4,36,"2020-08-31","Man","Knut, Øystein",null,"",null,null,null,null,null,null,null,1,null,1,null,null,null,null,null,null,"19:00:00","","22:00:00","03:00:00",69,"Knut",null,"Jonne/Hanne"]
[null,3,36,"2020-09-03","Tor","",null,"",null,null,null,null,null,null,null,null,null,null,null,null,null,null,null,null,"","","","00:00:00",70]
[null,4,37,"2020-09-07","Man","",null,"",null,null,null,null,null,null,null,null,null,null,null,null,null,null,null,null,"","","","00:00:00",71,"Olav"]
[null,3,37,"2020-09-10","Tor","",null,"",null,null,null,null,null,null,null,null,null,null,null,null,null,null,null,null,"","","","00:00:00",72,"Anne Bjørg"]
[null,4,38,"2020-09-14","Man","",null,"",null,null,null,null,null,null,null,null,null,null,null,null,null,null,null,null,"","","","00:00:00",73,"Christiene"]
[null,3,38,"2020-09-17","Tor","",null,"",null,null,null,null,null,null,null,null,null,null,null,null,null,null,null,null,"","","","00:00:00",74,"Inger"]
[null,4,39,"2020-09-21","Man","",null,"",null,null,null,null,null,null,null,null,null,null,null,null,null,null,null,null,"","","","00:00:00",75,"Tove"]
[null,3,39,"2020-09-24","Tor","",null,"",null,null,null,null,null,null,null,null,null,null,null,null,null,null,null,null,"","","","00:00:00",76,"Lisbeth"]
[null,4,40,"2020-09-28","Man","",null,"",null,null,null,null,null,null,null,null,null,null,null,null,null,null,null,null,"","","","00:00:00",77,"Olav"]
[null,3,40,"2020-10-01","Tor","",null,"",null,null,null,null,null,null,null,null,null,null,null,null,null,null,null,null,"","","","00:00:00",78,"Line"]
[null,4,41,"2020-10-05","Man","",null,{"$f":"PickSelected(I84:X84,JobbgjengFork)","v":""},null,null,null,null,null,null,null,null,null,null,null,null,null,null,null,null,"","","","00:00:00",79,"Anne Bjørg"]
[null,3,41,"2020-10-08","Tor","",null,"",null,null,null,null,null,null,null,null,null,null,null,null,null,null,null,null,"","","","00:00:00",80,"Christiene"]
[null,4,42,"2020-10-12","Man","",null,"",null,null,null,null,null,null,null,null,null,null,null,null,null,null,null,null,"","","","00:00:00",81,"Inger"]
[null,3,42,"2020-10-15","Tor","",null,"",null,null,null,null,null,null,null,null,null,null,null,null,null,null,null,null,"","","","00:00:00",82,"Tove"]
[null,4,43,"2020-10-19","Man","",null,"",null,null,null,null,null,null,null,null,null,null,null,null,null,null,null,null,"","","","00:00:00",83,"Lisbeth"]
[null,3,43,"2020-10-22","Tor","",null,"",null,null,null,null,null,null,null,null,null,null,null,null,null,null,null,null,"","","","00:00:00",84,"Olav"]
[null,{"$f":"IF(B89<B88,B89+1,B89-1)","v":4},{"$f":"IF(C89=C88,C89+1,C89)","v":44},{"$f":"D89+B90","v":"2020-10-26"},"Man","",null,"",null,null,null,null,null,null,null,null,null,null,null,null,null,null,null,null,"","","","00:00:00",85]
[null,3,44,"2020-10-29",{"$f":"INDEX(DayNames,WEEKDAY(D91))","v":"Tor"},"",null,"",null,null,null,null,null,null,null,null,null,null,null,null,null,null,null,null,"","","","00:00:00",86]
[null,4,45,"2020-11-02","Man","",null,"",null,null,null,null,null,null,null,null,null,null,null,null,null,null,null,null,"","","","00:00:00",87]
[null,3,45,"2020-11-05","Tor","",null,"",null,null,null,null,null,null,null,null,null,null,null,null,null,null,null,null,"","","","00:00:00",88]
[null,4,46,"2020-11-09","Man","",null,"",null,null,null,null,null,null,null,null,null,null,null,null,null,null,null,null,"","","","00:00:00",89]
[null,3,46,"2020-11-12","Tor","",null,"",null,null,null,null,null,null,null,null,null,null,null,null,null,null,null,null,"","","","00:00:00",90]
[null,4,47,"2020-11-16","Man","",null,"",null,null,null,null,null,null,null,null,null,null,null,null,null,null,null,null,"","","","00:00:00",91]
[null,3,47,"2020-11-19","Tor","",null,"",null,null,null,null,null,null,null,null,null,null,null,null,null,null,null,null,"","","","00:00:00",92]
[null,4,48,"2020-11-23","Man","",null,{"$f":"PickSelected(I98:X98,JobbgjengFork)","v":""},null,null,null,null,null,null,null,null,null,null,null,null,null,null,null,null,"","","","00:00:00",93]
[null,3,48,"2020-11-26","Tor","",null,"",null,null,null,null,null,null,null,null,null,null,null,null,null,null,null,null,"","","","00:00:00",94]
[null,4,49,"2020-11-30","Man","",null,"",null,null,null,null,null,null,null,null,null,null,null,null,null,null,null,null,"","","","00:00:00",95]
[null,3,49,"2020-12-03","Tor","",null,"",null,null,null,null,null,null,null,null,null,null,null,null,null,null,null,null,{"$f":"IF($F101=\"\",\"\",IF(AND($D101>=Første_Kursdag,$D101<=Siste_Kursdag),VLOOKUP($E101,Tidtabell,2,FALSE),VLOOKUP($E101,Tidtabell,3,FALSE)))","v":""},{"$f":"IF($F101=\"\",\"\",IF(AND($D101>=Første_Kursdag,$D101<=Siste_Kursdag),VLOOKUP($E101,Tidtabell,4,FALSE),\"\"))","v":""},{"$f":"IF(F101<>\"\",VLOOKUP($E101,Tidtabell,6,FALSE),\"\")","v":""},"00:00:00",96]
[null,4,50,"2020-12-07","Man","",null,"",null,null,null,null,null,null,null,null,null,null,null,null,null,null,null,null,"","","","00:00:00",97]
[null,3,50,"2020-12-10","Tor","",null,"",null,null,null,null,null,null,null,null,null,null,null,null,null,null,null,null,"","","","00:00:00",98]
[null,4,51,"2020-12-14","Man","",null,"",null,null,null,null,null,null,null,null,null,null,null,null,null,null,null,null,"","","","00:00:00",99]
[null,3,51,"2020-12-17","Tor","",null,"",null,null,null,null,null,null,null,null,null,null,null,null,null,null,null,null,"","","","00:00:00",100]
[null,4,52,"2020-12-21","Man","",null,"",null,null,null,null,null,null,null,null,null,null,null,null,null,null,null,null,"","","","00:00:00",101]
[null,3,52,"2020-12-24","Tor","",null,"",null,null,null,null,null,null,null,null,null,null,null,null,null,null,null,null,"","","","00:00:00",102]
[null,4,53,"2020-12-28","Man","",null,"",null,null,null,null,null,null,null,null,null,null,null,null,null,null,null,null,"","","","00:00:00",103]
[null,null,null,null,null,null,{"$f":"H109&\" \"","v":"Ant. Vakter: "},"Ant. Vakter:",{"$f":"SUM(I6:I108)","v":0},7,7,7,7,7,7,7,6,7,7,7,6,6,0,0]
[null,null,99,null,null,null,{"$f":"H110&\" \"","v":"Tot. Timer: "},"Tot. Timer:",{"$f":"ROUNDDOWN(SUMIF(I6:I108,1,VaktTidSum)*24,0)","v":0},26,23,24,24,25,26,26,529,533,26,27,23,21,0,0]
[null,null,99,null,null,null,{"$f":"H111&\" \"","v":"Pluss minutter: "},"Pluss minutter:",{"$f":"MOD(SUMIF(I6:I108,1,VaktTidSum)*24,60)","v":0},26.000000000000004,23,24.500000000000004,24,25.5,26,26.499999999999996,49.25,53.5,26.25,27.75,23.25,21.75,0,0]
[null,null,99,null,null,null,{"$f":"H112&\" \"","v":"Navn: "},"Navn:",{"$f":"I3","v":0},"Annie","Dagfinn","Tom","Kyonghwa","Alfhild","Irene","Knut","Turid","Øystein","Tom H","Elisabeth","Maria","Johannes",0,0]
[null,null,99]
[null,null,99]

{"sheet":"Tidstabell","index":1,"n_rows":3,"n_cols":9,"rows_kept":3,"cut":false,"hidden":false,"merged":[]}
["Første Kursdato i sesongen:","2020-01-13",null,"Dag:","Start Vakt 1\n(Kurs)","Start Vakt 1\n(ordinært)","Start Vakt 2\n(Kurs)","Start Vakt 2\n(ordinært)","Vaktslutt"]
["Siste Kursdato i sesongen:","2020-04-02",null,"Man","17:30:00","19:00:00","19:30:00",null,"22:00:00"]
[null,null,null,"Tor","17:30:00",null,"19:30:00",null,"21:00:00"]